fUST/lending_fUST_20250312
["ID","MTS","AMOUNT","RATE_DAILY","PERIOD"]
[355994478,1741786248465,-160.0,0.00023197,2]
[355994479,1741786248475,-416.66666667,0.00023197,2]
[355994480,1741786248485,-1149.46663565,0.0002321,3]
[355994481,1741786248495,-500.0,0.00023287,2]
[355994482,1741786248505,-500.0,0.00023287,2]
[355994483,1741786248515,-500.0,0.00023287,2]
[355994484,1741786248525,-500.0,0.00023287,2]
[355994485,1741786248535,-807.82,0.00023287,2]
[355994486,1741786248546,-500.0,0.00023287,2]
[355994487,1741786248556,-500.0,0.00023287,2]
[355994488,1741786248566,-500.0,0.00023287,2]
[355994489,1741786248577,-500.0,0.00023287,2]
[355994490,1741786248588,-519.5,0.00023287,2]
[355994491,1741786248598,-260.32,0.00023287,2]
[355994492,1741786248607,-500.0,0.00023287,2]
[355994493,1741786248617,-500.0,0.00023287,2]
[355994494,1741786248632,-500.0,0.00023287,2]
[355994495,1741786248643,-23306.0,0.00023287,2]
[355994496,1741786248654,-818.52,0.00023287,2]
[355994497,1741786248666,-500.0,0.00023287,2]
[355994498,1741786248676,-500.0,0.00023287,2]
[355994499,1741786248686,-500.0,0.00023287,2]
[355994500,1741786248696,-2603.4,0.00023287,2]
[355994501,1741786248707,-21843.54,0.00023287,2]
[355994502,1741786248716,-500.0,0.00023287,2]
[355994503,1741786248726,-500.0,0.00023287,2]
[355994504,1741786248736,-1000.0,0.00023287,7]
[355994505,1741786248746,-500.0,0.00023287,2]
[355994506,1741786248756,-500.0,0.00023287,2]
[355994507,1741786248766,-500.0,0.00023287,2]
[355994508,1741786248776,-327.20072768,0.00023287,2]
[355994509,1741786248786,-821.08,0.00023287,2]
[355994510,1741786248796,-845.34,0.00023287,2]
[355994511,1741786248806,-500.0,0.00023287,2]
[355994512,1741786248816,-354.0,0.00023288,2]
[355994513,1741786248827,-1920.0,0.00023432,2]
[355994514,1741786248838,-540.0,0.00023432,2]
[355994515,1741786248848,-2272.0,0.00023432,2]
[355994516,1741786248859,-313.62809527,0.00023452,2]
[355994517,1741786248869,-500.0,0.00023561,2]
[355994518,1741786248883,-500.0,0.00023561,2]
[355994519,1741786248893,-529.33615281,0.00023561,2]
[355994520,1741786248903,-500.0,0.00023561,2]
[355994521,1741786248914,-807.82,0.00023561,2]
[355994522,1741786248927,-500.0,0.00023561,2]
[355994523,1741786248937,-500.0,0.00023561,2]
[355994524,1741786248947,-500.0,0.00023561,2]
[355994525,1741786248957,-500.0,0.00023561,2]
[355994526,1741786248967,-519.5,0.00023561,2]
[355994527,1741786248978,-500.0,0.00023561,2]
[355994528,1741786248987,-196.10961402,0.00023561,2]
[355994529,1741786248998,-500.0,0.00023561,2]
[355994530,1741786249009,-23306.0,0.00023561,2]
[355994531,1741786249019,-818.52,0.00023561,2]
[355994532,1741786249029,-500.0,0.00023561,2]
[355994533,1741786249040,-500.0,0.00023561,2]
[355994534,1741786249050,-500.0,0.00023561,2]
[355994535,1741786249060,-2603.4,0.00023561,2]
[355994536,1741786249070,-21843.54,0.00023561,2]
[355994537,1741786249080,-500.0,0.00023561,2]
[355994538,1741786249090,-500.0,0.00023561,2]
[355994539,1741786249100,-1000.0,0.00023561,7]
[355994540,1741786249110,-500.0,0.00023561,2]
[355994541,1741786249120,-500.0,0.00023561,2]
[355994542,1741786249133,-500.0,0.00023561,2]
[355994543,1741786249143,-821.08,0.00023561,2]
[355994544,1741786249152,-845.34,0.00023561,2]
[355994545,1741786249162,-500.0,0.00023561,2]
[355994546,1741786249172,-354.0,0.00023562,2]
[355994547,1741786249182,-3500.0,0.00023766,2]
[355994548,1741786249192,-500.0,0.00023835,2]
[355994549,1741786249202,-500.0,0.00023835,2]
[355994550,1741786249212,-500.0,0.00023835,2]
[355994551,1741786249222,-807.82,0.00023835,2]
[355994552,1741786249233,-500.0,0.00023835,2]
[355994553,1741786249242,-500.0,0.00023835,2]
[355994554,1741786249252,-500.0,0.00023835,2]
[355994555,1741786249262,-500.0,0.00023835,2]
[355994556,1741786249272,-519.5,0.00023835,2]
[355994557,1741786249282,-500.0,0.00023835,2]
[355994558,1741786249292,-500.0,0.00023835,2]
[355994559,1741786249302,-23306.0,0.00023835,2]
[355994560,1741786249311,-818.52,0.00023835,2]
[355994561,1741786249322,-186.55357227,0.00023835,2]
[355994562,1741786249332,-500.0,0.00023835,2]
[355994563,1741786249342,-500.0,0.00023835,2]
[355994564,1741786249353,-2603.4,0.00023835,2]
[355994565,1741786249363,-21843.54,0.00023835,2]
[355994566,1741786249378,-500.0,0.00023835,2]
[355994567,1741786249388,-500.0,0.00023835,2]
[355994568,1741786249398,-1000.0,0.00023835,7]
[355994569,1741786249409,-500.0,0.00023835,2]
[355994570,1741786249420,-500.0,0.00023835,2]
[355994571,1741786249430,-500.0,0.00023835,2]
[355994572,1741786249441,-821.08,0.00023835,2]
[355994573,1741786249451,-845.34,0.00023835,2]
[355994574,1741786249462,-500.0,0.00023835,2]
[355994575,1741786249471,-354.0,0.00023836,2]
[355994576,1741786249481,-1826.4642746,0.000239,2]
[355994577,1741786249491,-300.0,0.000239,11]
[355994578,1741786249501,-1149.46663565,0.00023969,3]
[355994579,1741786249511,-1666.0168749,0.00024,2]
[355994580,1741786249520,-154.59671782,0.00024,120]
[355994581,1741786249530,-527.30057071,0.00024,2]
[355994582,1741786249540,-160.0,0.00024,7]
[355994583,1741786249550,-15577.25547611,0.00024,7]
[355994584,1741786249560,-153.0,0.00024,2]
[355994585,1741786249570,-160.0,0.00024,7]
[355994586,1741786249580,-416.66666667,0.00024,7]
[355994587,1741786249589,-500.0,0.00024109,2]
[355994588,1741786249599,-500.0,0.00024109,2]
[355994589,1741786249609,-500.0,0.00024109,2]
[355994590,1741786249618,-807.82,0.00024109,2]
[355994591,1741786249632,-500.0,0.00024109,2]
[355994592,1741786249643,-500.0,0.00024109,2]
[355994593,1741786249653,-500.0,0.00024109,2]
[355994594,1741786249663,-500.0,0.00024109,2]
[355994595,1741786249674,-519.5,0.00024109,2]
[355994596,1741786249684,-500.0,0.00024109,2]
[355994597,1741786249693,-500.0,0.00024109,2]
[355994598,1741786249703,-23306.0,0.00024109,2]
[355994599,1741786249713,-818.52,0.00024109,2]
[355994600,1741786249723,-500.0,0.00024109,2]
[355994601,1741786249732,-500.0,0.00024109,2]
[355994602,1741786249743,-2603.4,0.00024109,2]
[355994603,1741786249754,-21843.54,0.00024109,2]
[355994604,1741786249765,-500.0,0.00024109,2]
[355994605,1741786249775,-500.0,0.00024109,2]
[355994606,1741786249785,-1000.0,0.00024109,7]
[355994607,1741786249796,-500.0,0.00024109,2]
[355994608,1741786249807,-562.30042109,0.00024109,2]
[355994609,1741786249818,-500.0,0.00024109,2]
[355994610,1741786249829,-821.08,0.00024109,2]
[355994611,1741786249840,-845.34,0.00024109,2]
[355994612,1741786249850,-500.0,0.00024109,2]
[355994613,1741786249861,-354.0,0.0002411,2]
[355994614,1741786249876,-354.0,0.00024164,2]
[355994615,1741786249887,-500.0,0.00024383,2]
[355994616,1741786249896,-500.0,0.00024383,2]
[355994617,1741786249907,-500.0,0.00024383,2]
[355994618,1741786249917,-807.82,0.00024383,2]
[355994619,1741786249926,-500.0,0.00024383,2]
[355994620,1741786249940,-500.0,0.00024383,2]
[355994621,1741786249950,-500.0,0.00024383,2]
[355994622,1741786249960,-500.0,0.00024383,2]
[355994623,1741786249970,-519.5,0.00024383,2]
[355994624,1741786249982,-500.0,0.00024383,2]
[355994625,1741786249991,-500.0,0.00024383,2]
[355994626,1741786250001,-5844.06201115,0.00024383,2]
[355994627,1741786250117,-1666.22,0.00024383,2]
[355994628,1741786250946,-839.68132512,0.00016866,2]
[355994660,1741787433052,-195.0947509,0.00016186,2]
[355994662,1741787433063,-87.2612252,0.00016345,2]
[355994664,1741787433075,-242.9967678,0.00016345,2]
[355994666,1741787433085,-742.29147309,0.00016758,2]
[355994729,1741787438423,-245.50012212,0.00016758,2]
[355994731,1741787438433,-554.52546509,0.00016856,2]
[355994733,1741787438442,-554.52546509,0.00016856,2]
[355994734,1741787438451,-554.52546509,0.00016856,2]
[355994735,1741787438461,-554.52546509,0.00016856,2]
[355994736,1741787438471,-554.52546509,0.00016856,2]
[355994737,1741787438481,-554.52546509,0.00016856,2]
[355994738,1741787438490,-554.52546509,0.00016856,2]
[355994739,1741787438500,-554.52546509,0.00016856,2]
[355994740,1741787438509,-554.52546509,0.00016856,2]
[355994741,1741787438519,-554.52546509,0.00016856,2]
[355994742,1741787438528,-554.52546509,0.00016856,2]
[355994743,1741787438537,-554.52546509,0.00016856,2]
[355994744,1741787438546,-554.52546509,0.00016856,2]
[355994745,1741787438556,-554.52546509,0.00016856,2]
[355994746,1741787438566,-554.52546509,0.00016856,2]
[355994747,1741787438576,-554.52546509,0.00016856,2]
[355994748,1741787438585,-554.52546509,0.00016856,2]
[355994749,1741787438595,-554.52546509,0.00016856,2]
[355994750,1741787438604,-554.52546509,0.00016856,2]
[355994751,1741787438613,-554.52546509,0.00016856,2]
[355994752,1741787438622,-554.52546509,0.00016856,2]
[355994753,1741787438632,-554.52546509,0.00016856,2]
[355994754,1741787438640,-554.52546509,0.00016856,2]
[355994755,1741787438652,-554.52546509,0.00016856,2]
[355994756,1741787438662,-554.52546509,0.00016856,2]
[355994757,1741787438672,-554.52546509,0.00016856,2]
[355994758,1741787438682,-554.52546509,0.00016856,2]
[355994759,1741787438691,-554.52546509,0.00016856,2]
[355994760,1741787438701,-554.52546509,0.00016856,2]
[355994761,1741787438710,-554.52546509,0.00016856,2]
[355994762,1741787438720,-554.52546509,0.00016856,2]
[355994763,1741787438729,-554.52546509,0.00016856,2]
[355994764,1741787438739,-554.52546509,0.00016856,2]
[355994765,1741787438748,-554.52546509,0.00016856,2]
[355994766,1741787438757,-554.52546509,0.00016856,2]
[355994767,1741787438767,-554.52546509,0.00016856,2]
[355994768,1741787438776,-300.0,0.00016856,2]
[355994769,1741787438786,-500.0,0.00016873,2]
[355994770,1741787438795,-500.0,0.00016873,2]
[355994771,1741787438805,-500.0,0.00016873,2]
[355994772,1741787438814,-500.0,0.00016873,2]
[355994773,1741787438825,-500.0,0.00016873,2]
[355994774,1741787438834,-500.0,0.00016873,2]
[355994775,1741787438844,-500.0,0.00016873,2]
[355994776,1741787438852,-500.0,0.00016873,2]
[355994777,1741787438862,-500.0,0.00016873,2]
[355994778,1741787438871,-500.0,0.00016873,2]
[355994779,1741787438881,-500.0,0.00016873,2]
[355994780,1741787438891,-500.0,0.00016873,2]
[355994781,1741787438903,-1200.0,0.00017,2]
[355994782,1741787439064,-169.57936196,0.0001713,2]
[355994783,1741787439074,-500.0,0.00017175,2]
[355994784,1741787439083,-500.0,0.0001723,2]
[355994785,1741787439104,-500.0,0.0001723,2]
[355994786,1741787439115,-3814.0,0.00017873,6]
[355994787,1741787439125,-222000.0,0.000179,2]
[355994788,1741787439135,-300.0,0.000179,7]
[355994789,1741787439147,-1300.0,0.00018,3]
[355994790,1741787439157,-2955.95,0.00018,2]
[355994791,1741787439167,-150.0,0.00018131,2]
[355994792,1741787439177,-540.0,0.00018131,2]
[355994793,1741787439187,-1920.0,0.00018131,2]
[355994794,1741787439197,-2272.0,0.00018131,2]
[355994795,1741787439207,-2218.515,0.00018351,2]
[355994796,1741787439217,-420.0,0.00018413,2]
[355994797,1741787439227,-184.64,0.000186,2]
[355994798,1741787439237,-151.0,0.000187,2]
[355994799,1741787439247,-200.376,0.000187,2]
[355994800,1741787439257,-500.0,0.0001875,2]
[355994801,1741787439267,-1300.0,0.00019,4]
[355994802,1741787439277,-1208.46065849,0.00019,2]
[355994803,1741787439287,-1208.46065835,0.00019,2]
[355994804,1741787439298,-151.0,0.000192,2]
[355994805,1741787439311,-160.0,0.000194,3]
[355994806,1741787439320,-300.0,0.000194,8]
[355994807,1741787439330,-1208.46065835,0.00019417,2]
[355994808,1741787439341,-151.0,0.000197,2]
[355994809,1741787439351,-3000.0,0.000199,2]
[355994810,1741787439362,-500.0,0.00019973,2]
[355994811,1741787439372,-500.0,0.00019973,2]
[355994812,1741787439385,-500.0,0.00019973,2]
[355994813,1741787439399,-500.0,0.00019973,2]
[355994814,1741787439409,-500.0,0.00019973,2]
[355994815,1741787439419,-500.0,0.00019973,2]
[355994816,1741787439429,-500.0,0.00019973,2]
[355994817,1741787439438,-500.0,0.00019973,2]
[355994818,1741787439448,-500.0,0.00019973,2]
[355994819,1741787439457,-500.0,0.00019973,2]
[355994820,1741787439467,-500.0,0.00019973,2]
[355994821,1741787439477,-500.0,0.00019973,2]
[355994822,1741787439487,-500.0,0.00019973,2]
[355994823,1741787439496,-500.0,0.00019973,2]
[355994824,1741787439506,-500.0,0.00019973,2]
[355994825,1741787439516,-200.009412,0.00019973,2]
[355994826,1741787439525,-500.0,0.00019973,2]
[355994827,1741787439535,-500.0,0.00019973,2]
[355994828,1741787439544,-230.31197625,0.00019973,2]
[355994829,1741787439554,-500.0,0.00019973,2]
[355994830,1741787439564,-500.0,0.00019973,2]
[355994831,1741787439574,-504.28753099,0.00019973,2]
[355994832,1741787439583,-500.0,0.00019973,2]
[355994833,1741787439594,-527.12983452,0.00019973,2]
[355994834,1741787439603,-599.82939063,0.00019973,2]
[355994835,1741787439614,-500.0,0.00019973,2]
[355994836,1741787439624,-500.0,0.00019973,2]
[355994837,1741787439633,-62868.0,0.0002,2]
[355994838,1741787439643,-62868.0,0.0002,2]
[355994839,1741787439655,-62868.0,0.0002,2]
[355994840,1741787439665,-62868.0,0.0002,2]
[355994841,1741787439675,-62868.0,0.0002,2]
[355994842,1741787439684,-13519.508,0.0002,2]
[355994843,1741787439694,-179.56903432,0.00020057,2]
[355994844,1741787439704,-987.7915952,0.00020064,2]
[355994845,1741787439713,-151.0,0.000201,3]
[355994846,1741787439723,-587.0,0.00020114,2]
[355994847,1741787439732,-1208.46065835,0.00020176,2]
[355994848,1741787439742,-151.09991095,0.00020548,2]
[355994849,1741787439752,-151.0,0.000206,3]
[355994850,1741787439761,-15577.25547611,0.00020857,2]
[355994851,1741787439771,-160.0,0.00020857,2]
[355994852,1741787439781,-160.0,0.00020857,2]
[355994853,1741787439791,-416.66666667,0.00020857,2]
[355994854,1741787439800,-300.0,0.000209,9]
[355994855,1741787439810,-1208.46065835,0.00020934,2]
[355994856,1741787439821,-160.0,0.0002095,4]
[355994857,1741787439831,-151.0,0.000211,3]
[355994858,1741787439840,-150.0,0.00021131,2]
[355994859,1741787439850,-540.0,0.00021131,2]
[355994860,1741787439859,-1920.0,0.00021131,2]
[355994861,1741787439870,-2272.0,0.00021131,2]
[355994862,1741787439880,-151.0,0.000215,3]
[355994863,1741787439889,-1208.46065835,0.00021693,3]
[355994864,1741787439902,-500.0,0.00021917,14]
[355994865,1741787439913,-500.0,0.00021917,2]
[355994866,1741787439923,-500.0,0.00021917,2]
[355994867,1741787439933,-520.59963828,0.00021917,2]
[355994869,1741787439943,-502.10240063,0.00021917,2]
[355994871,1741787439952,-505.39198168,0.00021917,2]
[355994873,1741787439962,-269.85497192,0.00021917,2]
[355994875,1741787439971,-270.838071,0.00021917,2]
[355994877,1741787439981,-501.36794225,0.00021917,2]
[355994879,1741787439991,-511.76007996,0.00021917,2]
[355994881,1741787440001,-510.81819422,0.00021917,2]
[355994882,1741787440010,-514.65951519,0.00021917,2]
[355994883,1741787440019,-807.82,0.00021917,2]
[355994884,1741787440028,-409.94154966,0.00021917,2]
[355994885,1741787440038,-509.9173985,0.00021917,2]
[355994886,1741787440048,-501.04247637,0.00021917,2]
[355994887,1741787440059,-400.03262399,0.00021917,2]
[355994888,1741787440068,-586.2877314,0.00021917,2]
[355994889,1741787440079,-500.91488741,0.00021917,2]
[355994890,1741787440088,-501.29052873,0.00021917,2]
[355994891,1741787440098,-504.77159601,0.00021917,2]
[355994892,1741787440107,-513.1934037,0.00021917,2]
[355994893,1741787440118,-505.12944844,0.00021917,2]
[355994894,1741787440128,-506.6040403,0.00021917,2]
[355994895,1741787440137,-502.00304415,0.00021917,2]
[355994896,1741787440149,-317.08529297,0.00021917,2]
[355994897,1741787440158,-500.0,0.00021917,2]
[355994898,1741787440168,-204.1440205,0.00021917,2]
[355994899,1741787440177,-515.54027716,0.00021917,2]
[355994900,1741787440187,-507.33744744,0.00021917,2]
[355994901,1741787440196,-505.95873464,0.00021917,2]
[355994902,1741787440206,-518.95376314,0.00021917,2]
[355994903,1741787440215,-507.79973897,0.00021917,2]
[355994904,1741787440224,-509.0700847,0.00021917,2]
[355994906,1741787440233,-513.09017446,0.00021917,2]
[355994907,1741787440243,-225.70543005,0.00021917,2]
[355994908,1741787440252,-501.00112667,0.00021917,2]
[355994909,1741787440262,-512.23505407,0.00021917,2]
[355994910,1741787440272,-505.44945636,0.00021917,2]
[355994911,1741787440281,-517.08030786,0.00021917,2]
[355994912,1741787440292,-500.0,0.00021917,2]
[355994913,1741787440304,-507.98072865,0.00021917,2]
[355994914,1741787440314,-508.71838752,0.00021917,2]
[355994915,1741787440323,-520.20126565,0.00021917,2]
[355994916,1741787440335,-552.28402071,0.00021917,2]
[355994917,1741787440344,-507.14291318,0.00021917,2]
[355994918,1741787440353,-500.0,0.00021917,2]
[355994919,1741787440363,-500.0,0.00021917,2]
[355994920,1741787440373,-502.20626117,0.00021917,2]
[355994922,1741787440383,-500.0,0.00021917,2]
[355994923,1741787440392,-177.76818963,0.00021917,2]
[355994924,1741787440404,-500.0,0.00021917,2]
[355994925,1741787440413,-510.98112505,0.00021917,2]
[355994926,1741787440423,-510.64584715,0.00021917,2]
[355994927,1741787440432,-508.49291979,0.00021917,2]
[355994928,1741787440441,-500.0,0.00021917,2]
[355994929,1741787440451,-500.0,0.00021917,2]
[355994930,1741787440460,-500.0,0.00021917,2]
[355994931,1741787440470,-507.30524391,0.00021917,2]
[355994932,1741787440480,-500.0,0.00021917,2]
[355994934,1741787440490,-520.06858878,0.00021917,2]
[355994936,1741787440500,-500.0,0.00021917,2]
[355994937,1741787440509,-510.61559445,0.00021917,2]
[355994938,1741787440519,-511.02940284,0.00021917,2]
[355994940,1741787440529,-500.0,0.00021917,2]
[355994942,1741787440538,-516.01324364,0.00021917,2]
[355994944,1741787440548,-443.582252,0.00021917,2]
[355994945,1741787440562,-500.0,0.00021917,2]
[355994946,1741787440571,-517.62197839,0.00021917,2]
[355994947,1741787440580,-602.11467675,0.00021917,2]
[355994948,1741787440590,-520.36631491,0.00021917,2]
[355994949,1741787440599,-526.67223749,0.00021917,2]
[355994950,1741787440608,-500.0,0.00021917,2]
[355994951,1741787440618,-500.0,0.00021917,2]
[355994952,1741787440628,-500.0,0.00021917,2]
[355994953,1741787440637,-500.0,0.00021917,2]
[355994954,1741787440648,-500.0,0.00021917,2]
[355994955,1741787440657,-545.88626564,0.00021917,2]
[355994956,1741787440667,-500.0,0.00021917,2]
[355994957,1741787440677,-151.0,0.00021917,2]
[355994958,1741787440686,-504.99093472,0.00021917,2]
[355994959,1741787440696,-511.42032898,0.00021917,2]
[355994960,1741787440706,-495.01422473,0.00021917,2]
[355994961,1741787440716,-504.29042166,0.00021917,2]
[355994962,1741787440725,-506.10192912,0.00021917,2]
[355994963,1741787440734,-500.0,0.00021917,2]
[355994964,1741787440744,-500.0,0.00021917,2]
[355994965,1741787440754,-166.29440643,0.00021917,2]
[355994966,1741787440763,-386.11062339,0.00021917,2]
[355994967,1741787440772,-500.0,0.00021917,2]
[355994968,1741787440782,-260.32,0.00021917,2]
[355994969,1741787440791,-500.0,0.00021917,2]
[355994970,1741787440801,-500.85932994,0.00021917,2]
[355994971,1741787440811,-514.34267357,0.00021917,2]
[355994972,1741787440820,-513.02273915,0.00021917,2]
[355994973,1741787440830,-520.50517129,0.00021917,2]
[355994974,1741787440839,-500.0,0.00021917,2]
[355994975,1741787440848,-503.92100872,0.00021917,2]
[355994976,1741787440858,-502.93936821,0.00021917,2]
[355994977,1741787440867,-151.0,0.00021917,2]
[355994978,1741787440876,-509.64754391,0.00021917,2]
[355994979,1741787440886,-500.0,0.00021917,2]
[355994980,1741787440897,-818.52,0.00021917,2]
[355994981,1741787440906,-495.72761307,0.00021917,2]
[355994982,1741787440916,-515.08191736,0.00021917,2]
[355994983,1741787440925,-500.0,0.00021917,2]
[355994984,1741787440935,-500.0,0.00021917,2]
[355994985,1741787440944,-517.22708089,0.00021917,2]
[355994986,1741787440954,-500.0,0.00021917,2]
[355994987,1741787440963,-500.0,0.00021917,2]
[355994988,1741787440973,-508.55164121,0.00021917,2]
[355994989,1741787440982,-523.10085203,0.00021917,2]
[355994990,1741787440992,-500.0,0.00021917,2]
[355994991,1741787441001,-500.0,0.00021917,2]
[355994992,1741787441010,-500.0,0.00021917,2]
[355994993,1741787441019,-500.0,0.00021917,2]
[355994994,1741787441029,-500.0,0.00021917,2]
[355994995,1741787441039,-500.0,0.00021917,2]
[355994996,1741787441048,-500.0,0.00021917,2]
[355994997,1741787441058,-638.37521778,0.00021917,2]
[355994998,1741787441068,-512.35095462,0.00021917,2]
[355994999,1741787441077,-501.50883965,0.00021917,2]
[355995000,1741787441092,-500.0,0.00021917,2]
[355995001,1741787441102,-520.24598827,0.00021917,2]
[355995002,1741787441111,-516.97291656,0.00021917,2]
[355995003,1741787441121,-176.466114,0.00021917,2]
[355995004,1741787441131,-176.466114,0.00021917,2]
[355995005,1741787441141,-501.3689984,0.00021917,2]
[355995006,1741787441153,-500.0,0.00021917,2]
[355995007,1741787441163,-500.0,0.00021917,2]
[355995008,1741787441173,-523.29088961,0.00021917,2]
[355995009,1741787441183,-517.86749121,0.00021917,2]
[355995010,1741787441193,-500.0,0.00021917,2]
[355995011,1741787441202,-517.62664884,0.00021917,2]
[355995012,1741787441212,-510.10482625,0.00021917,2]
[355995013,1741787441221,-500.0,0.00021917,2]
[355995014,1741787441231,-508.32868218,0.00021917,2]
[355995015,1741787441240,-508.88319553,0.00021917,2]
[355995016,1741787441250,-500.0,0.00021917,2]
[355995017,1741787441260,-500.0,0.00021917,2]
[355995018,1741787441271,-489.42372418,0.00021917,2]
[355995019,1741787441282,-514.82313136,0.00021917,2]
[355995020,1741787441292,-510.44633331,0.00021917,2]
[355995021,1741787441305,-500.0,0.00021917,2]
[355995022,1741787441315,-500.0,0.00021917,2]
[355995023,1741787441324,-520.99534531,0.00021917,2]
[355995024,1741787441334,-500.0,0.00021917,2]
[355995025,1741787441345,-512.03991349,0.00021917,2]
[355995026,1741787441355,-500.0,0.00021917,2]
[355995027,1741787441364,-305.27899074,0.00021917,2]
[355995028,1741787441374,-428.4761151,0.00021917,2]
[355995029,1741787441386,-518.17409239,0.00021917,2]
[355995030,1741787441399,-313.66917543,0.00021917,2]
[355995031,1741787441409,-512.03859362,0.00021917,2]
[355995032,1741787441419,-429.80755991,0.00021917,2]
[355995033,1741787441429,-500.0,0.00021917,2]
[355995034,1741787441439,-525.16557436,0.00021917,2]
[355995035,1741787441449,-517.46512177,0.00021917,2]
[355995036,1741787441458,-520.63928527,0.00021917,2]
[355995037,1741787441468,-500.0,0.00021917,2]
[355995038,1741787441477,-500.0,0.00021917,2]
[355995039,1741787441486,-500.0,0.00021917,2]
[355995040,1741787441496,-535.96563099,0.00021917,2]
[355995041,1741787441506,-500.0,0.00021917,2]
[355995042,1741787441515,-500.0,0.00021917,2]
[355995043,1741787441525,-512.83057655,0.00021917,2]
[355995044,1741787441534,-632.11695711,0.00021917,2]
[355995045,1741787441544,-500.0,0.00021917,2]
[355995046,1741787441553,-151.0,0.00021917,2]
[355995047,1741787441563,-151.0,0.00021917,2]
[355995048,1741787441572,-500.0,0.00021917,2]
[355995049,1741787441582,-500.0,0.00021917,2]
[355995050,1741787441591,-510.58789406,0.00021917,2]
[355995051,1741787441601,-500.0,0.00021917,2]
[355995052,1741787441610,-503.63777399,0.00021917,2]
[355995053,1741787441619,-510.49956206,0.00021917,2]
[355995054,1741787441629,-514.45447354,0.00021917,2]
[355995055,1741787441638,-500.0,0.00021917,2]
[355995056,1741787441647,-500.0,0.00021917,2]
[355995057,1741787441657,-557.50894232,0.00021917,2]
[355995058,1741787441666,-500.0,0.00021917,2]
[355995059,1741787441675,-500.0,0.00021917,2]
[355995060,1741787441685,-500.0,0.00021917,2]
[355995061,1741787441695,-500.0,0.00021917,2]
[355995062,1741787441704,-519.9295524,0.00021917,2]
[355995063,1741787441715,-500.0,0.00021917,2]
[355995064,1741787441724,-500.0,0.00021917,2]
[355995065,1741787441734,-530.58618749,0.00021917,2]
[355995066,1741787441743,-208.210136,0.00021917,2]
[355995067,1741787441752,-519.5,0.00021917,2]
[355995068,1741787441762,-500.0,0.00021917,2]
[355995069,1741787441772,-500.0,0.00021917,2]
[355995070,1741787441782,-500.0,0.00021917,2]
[355995071,1741787441791,-500.0,0.00021917,2]
[355995072,1741787441800,-500.0,0.00021917,2]
[355995073,1741787441810,-559.31131292,0.00021917,2]
[355995074,1741787441821,-500.0,0.00021917,2]
[355995075,1741787441831,-634.32534296,0.00021917,2]
[355995076,1741787441840,-500.0,0.00021917,2]
[355995077,1741787441849,-508.16056948,0.00021917,2]
[355995078,1741787441859,-514.11227303,0.00021917,2]
[355995079,1741787441869,-500.0,0.00021917,2]
[355995080,1741787441880,-500.0,0.00021917,2]
[355995081,1741787441889,-500.0,0.00021917,2]
[355995082,1741787441900,-532.65827802,0.00021917,2]
[355995083,1741787441909,-500.0,0.00021917,2]
[355995084,1741787441919,-200.0,0.00021917,2]
[355995085,1741787441928,-513.8267618,0.00021917,2]
[355995086,1741787441938,-509.62744111,0.00021917,2]
[355995087,1741787441948,-500.0,0.00021917,2]
[355995088,1741787441958,-520.42814251,0.00021917,2]
[355995089,1741787441967,-505.97256253,0.00021917,2]